Cogmind - Beta 10.1 --- EXPLORER MODE // 2020.10.27 @ 13:41:09 Player: Joking_Phantom Result: Destroyed by DAS Turret with DAS Cannon Performance ------------- Evolutions (0) 0 Regions Visited (3) 600 Robots Destroyed (12) 60 Value Destroyed (37) 37 Prototype IDs (25) 500 Alien Tech Used (0) 0 Bonus (-81) -81 TOTAL SCORE: 1116 Bonus ------- Friendly Fire -81 Cogmind --------- Core Integrity 0/250 Matter 114/300 Energy 120/125 System Corruption 2% Temperature Cool (2) Movement Walking (150) Ox1 Location -10/Exiles Parts ------- > --- POWER (1) -------- Light Ion Engine > --- PROPULSION (2) --- Aluminum Leg Advanced Myomer Leg > --- UTILITY (3) ------ Medium Storage Unit Medium Storage Unit High-capacity Storage Unit > --- WEAPON (2) ------- Rocket Launcher > --- INVENTORY (20) --- Light Ion Engine Flying Fortress v7 High-capacity Battery (400) Gravity Neutralizing Apparatus Experimental Targeting Computer Advanced Weapon Cycler Weapon Shielding XL Autogun Array Peak State ------------ > --- POWER ------------ Light Ion Engine > --- PROPULSION ------- Aluminum Leg Advanced Myomer Leg > --- UTILITY ---------- Medium Storage Unit Medium Storage Unit High-capacity Storage Unit > --- WEAPON ----------- Rocket Launcher > --- INVENTORY -------- Light Ion Engine Flying Fortress v7 Gravity Neutralizing Apparatus Experimental Targeting Computer Advanced Weapon Cycler Weapon Shielding XL Autogun Array [Rating: 24] Favorites ----------- Power Light Ion Engine Engine Light Ion Engine Propulsion Aluminum Leg Treads Light Treads Leg Aluminum Leg Utility Medium Storage Unit Device Gravity Neutralizing Apparatus Storage Medium Storage Unit Protection Weapon Shielding Weapon Assault Rifle Ballistic Gun Assault Rifle Launcher Rocket Launcher Build | -11 -10 -10 -10 ------- Run | Scr Mat Min Exi Slots Evolved 1 | . 1 . . Power . | . . . . Propulsion . | . . . . Utility 1 | . 1 . . Weapon . | . . . . Parts Attached 13 | 2 1 4 6 Power 1 | . . 1 . Engine 1 | . . 1 . Core . | . . . . Reactor . | . . . . Propulsion 4 | . . 2 2 Treads 2 | . . 2 . Leg 2 | . . . 2 Wheel . | . . . . Hover . | . . . . Flight . | . . . . Utility 6 | 1 1 1 3 Device 1 | . . . 1 Storage 3 | 1 1 . 1 Processor . | . . . . Hackware . | . . . . Protection 2 | . . 1 1 Artifact . | . . . . Weapon 2 | 1 . . 1 Energy Gun . | . . . . Energy Cannon . | . . . . Ballistic Gun 1 | 1 . . . Ballistic Cannon . | . . . . Launcher 1 | . . . 1 Special Weapon . | . . . . Impact Weapon . | . . . . Slashing Weapon . | . . . . Piercing Weapon . | . . . . Special Melee Weapon . | . . . . Unidentified Prototypes 2 | . . . 2 Parts Lost 3 | . . 2 1 Power 1 | . . 1 . Propulsion 1 | . . 1 . Utility . | . . . . Weapon 1 | . . . 1 Highest Loss Streak 2 | . . 2 1 Average Slot Usage (%) 93 | . 97 99 87 Engine 12 | . 12 12 12 Treads 6 | . . 18 . Leg 18 | . 25 6 25 Storage 27 | . 34 26 26 Protection 8 | . . 10 10 Ballistic Gun 13 | . 25 25 . Launcher 5 | . . . 12 Naked Turns . | . . . . Heaviest Build 55 | 19 27 27 55 Greatest Support 40 | 20 20 40 40 Greatest Overweight (x) 1 | . 1 1 1 Average Overweight (x) . | . . . . Largest Inventory Capacity 20 | 10 14 14 20 Average Capacity 12 | 8 13 12 13 Most Carried 14 | 8 8 12 14 Average Carried 10 | 7 8 8 12 Final Capacity 20 | 10 14 12 20 Final Carried 14 | 8 8 12 14 Class Distribution -------------------- 100% | Hacker-Mutant Dominant Class ---------------- Hacker-Mutant | -10/Materials Hacker-Mutant | -10/Mines Hacker-Mutant | -10/Exiles Resources | -11 -10 -10 -10 ----------- Run | Scr Mat Min Exi Matter Collected 464 | 256 26 162 20 Remotely . | . . . . Salvage Created 238 | 56 18 140 24 Parts 12 | 2 2 8 . Haulers Intercepted . | . . . . Recyclers Shooed 1 | . . 1 . Parts Field Recycled . | . . . . Retrieved Matter . | . . . . Parts Self-Destructed . | . . . . Prevented . | . . . . Kills | -11 -10 -10 -10 ------- Run | Scr Mat Min Exi Combat Hostiles Destroyed 11 | . 1 3 7 Guns 4 | . 1 3 . AOE 7 | . . . 7 Classes Destroyed 3 | 1 1 . 1 Recycler 1 | 1 . . . Swarmer 3 | . 1 2 . Assembled 7 | . . . 7 Best Kill Streak 7 | 1 1 2 7 Combat Bots Only 7 | . 1 2 7 Max Kills in Single Turn 2 | 1 1 2 2 Gunslinging 1 | . . 1 . Exploded 2 | . . . 2 Melee . | . . . . Uniques/NPCs Destroyed 1 | . . 1 . 8R-AWN (-10/Mines) Combat | -11 -10 -10 -10 -------- Run | Scr Mat Min Exi Damage Taken 1066 | . 16 850 200 Core 256 | . 5 191 60 Absorbed by Shields . | . . . . Core Remaining (%) 100 | 100 . . . Volleys Fired 65 | 6 3 48 8 Largest 2 | 2 2 2 2 Hottest 53 | 40 40 40 53 Shots Fired 123 | 12 6 96 9 Gun 115 | 12 6 96 1 Cannon . | . . . . Launcher 8 | . . . 8 Special . | . . . . Kinetic 115 | 12 6 96 1 Thermal . | . . . . Explosive 8 | . . . 8 Electromagnetic . | . . . . Robot Hit Streak 35 | 12 5 35 6 Robot Miss Streak 2 | . 1 2 1 Penetration Max . | . . . . Secondary Targets 1 | . . 1 . Max Gunslinging Chain 1 | . . 1 . Shots Hit Robots 113 | 12 5 90 6 Core Hits 43 | 2 2 19 20 Critical Hits . | . . . . Critical Kills . | . . . . Critical Parts Destroyed . | . . . . Melee Attacks . | . . . . Impact . | . . . . Slashing . | . . . . Piercing . | . . . . Sneak Attacks . | . . . . Combat Hostiles . | . . . . Follow-up Attacks . | . . . . Damage Inflicted 1864 | 142 47 1133 542 Guns 1336 | 142 47 1133 14 Cannons . | . . . . Explosions 452 | . . . 452 Melee . | . . . . Ramming 76 | . . . 76 Kinetic 1336 | 142 47 1133 14 Thermal . | . . . . Explosive 452 | . . . 452 Electromagnetic . | . . . . Impact . | . . . . Slashing . | . . . . Piercing . | . . . . Highest Corruption 2 | . . . 2 Average Corruption 1 | . . . 1 Corruption Purged . | . . . . Effects 3 | . . . 3 Message Errors 1 | . . . 1 Heat Flow Errors 1 | . . . 1 Energy Discharges 1 | . . . 1 Overload Shots . | . . . . Overflow Damage 8 | . . . 8 Projectiles . | . . . . Explosions 8 | . . . 8 Melee . | . . . . Knockbacks . | . . . . Impact . | . . . . Kinetic . | . . . . Secondary . | . . . . Self-Inflicted Damage 14 | . . . 14 Shots . | . . . . Rammed 17 | . . . 17 Targets Rammed 29 | . . . 29 Kicked 12 | . . . 12 Crushed . | . . . . Highest Temperature 185 | . . . 185 Average Temperature 98 | . . . 98 Received Heat Transfer . | . . . . Siege Activations . | . . . . Robots Corrupted . | . . . . Combat Hostiles . | . . . . Parts Fried . | . . . . Impact Corruptions . | . . . . Robots Melted . | . . . . Combat Hostiles . | . . . . Parts Melted . | . . . . Heat Transferred . | . . . . Parts Sabotaged . | . . . . Parts Stolen . | . . . . Parts Stripped . | . . . . Power Chain Reactions . | . . . . Missiles Intercepted . | . . . . Alert | -11 -10 -10 -10 ------- Run | Scr Mat Min Exi Peak Influence 50 | 5 32 50 . Initial 8 | . 2 8 . Average 17 | 2 13 20 . Maximum Alert Level . | . . . . Low Security (%) 100 | 100 100 100 . Level 1 . | . . . . Level 2 . | . . . . Level 3 . | . . . . Level 4 . | . . . . Level 5 . | . . . . High Security . | . . . . Max Security . | . . . . Squads Dispatched . | . . . . Investigation . | . . . . Extermination . | . . . . Reinforcement . | . . . . Assault . | . . . . Garrison . | . . . . Intercept . | . . . . Construction Impeded . | . . . . Haulers Reinforced . | . . . . Stealth | -11 -10 -10 -10 --------- Run | Scr Mat Min Exi Distress Signals 1 | . 1 . . Communications Jammed . | . . . . Distress Signals . | . . . . Times Spotted 15 | . 6 3 6 Peak Tracking Total 8 | . 3 2 8 Tactical Retreats 1 | . . . 1 Traps | -11 -10 -10 -10 ------- Run | Scr Mat Min Exi Traps Triggered . | . . . . Indirectly . | . . . . Trap Hack Attempts . | . . . . Triggered . | . . . . Disarmed . | . . . . Reprogrammed . | . . . . Reused . | . . . . Traps Extracted . | . . . . Installed . | . . . . Triggered . | . . . . Machines | -11 -10 -10 -10 ---------- Run | Scr Mat Min Exi Machines Disabled 1 | . . . 1 Max in Single Turn 1 | . . . 1 Machines Sabotaged . | . . . . Garrisons Compromised . | . . . . Overloaded Fab Kills . | . . . . Fab Network Shutdowns . | . . . . Hacking | -11 -10 -10 -10 --------- Run | Scr Mat Min Exi Machines Accessed 1 | . . . 1 Terminals . | . . . . Fabricators . | . . . . Repair Stations . | . . . . Recycling Units . | . . . . Scanalyzers . | . . . . Garrison Access . | . . . . Total Hacks 1 | . . . 1 Successful 1 | . . . 1 Failed . | . . . . Catastrophic . | . . . . Database Lockouts . | . . . . Manual 1 | . . . 1 Terminals . | . . . . Fabricators . | . . . . Repair Stations . | . . . . Recycling Units . | . . . . Scanalyzers . | . . . . Garrison Access . | . . . . Terminal Hacks 1 | . . . 1 EX-Prototype ID Bank 1 | . . . 1 Fabricator Hacks . | . . . . Repair Station Hacks . | . . . . Recycling Unit Hacks . | . . . . Scanalyzer . | . . . . Garrison Access Hacks . | . . . . Unauthorized Hacks . | . . . . Terminals . | . . . . Fabricators . | . . . . Repair Stations . | . . . . Recycling Units . | . . . . Scanalyzers . | . . . . Garrison Access . | . . . . Data Cores Recovered . | . . . . Used . | . . . . Hacking Detections . | . . . . Full Trace Events . | . . . . Feedback Events . | . . . . Feedback Blocked . | . . . . Robot Schematics Acquired . | . . . . Robots Built . | . . . . Matter . | . . . . Time . | . . . . Total Robot Build Rating . | . . . . Part Schematics Acquired . | . . . . Parts Built . | . . . . Matter . | . . . . Time . | . . . . Total Part Build Rating . | . . . . Parts Repaired . | . . . . Time . | . . . . Parts Recycled . | . . . . Recycled Matter . | . . . . Retrieved Matter . | . . . . Retrieved Components . | . . . . Parts Scanalyzed . | . . . . Part Schematics Acquired . | . . . . Parts Damaged . | . . . . Bothacking | -11 -10 -10 -10 ------------ Run | Scr Mat Min Exi Used RIF Installer . | . . . . Robots Hacked . | . . . . Non-combat . | . . . . Combat . | . . . . Robot Hacks Applied . | . . . . Relay Couplers Released . | . . . . Robots Rewired . | . . . . Allies Hacked . | . . . . Hacks Repelled . | . . . . Allies | -11 -10 -10 -10 -------- Run | Scr Mat Min Exi Total Allies . | . . . . Largest Group . | . . . . Highest-Rated Group . | . . . . Highest-Rated Ally . | . . . . Total Orders . | . . . . Ally Attacks . | . . . . Total Damage . | . . . . Kills . | . . . . Allies Corrupted . | . . . . Allies Melted . | . . . . Intel | -11 -10 -10 -10 ------- Run | Scr Mat Min Exi Robot Analysis Total . | . . . . Derelict Logs Recovered . | . . . . Drone Launches . | . . . . Drone Recoveries . | . . . . Exploration | -11 -10 -10 -10 ------------- Run | Scr Mat Min Exi Turns Passed 937 | 29 143 329 436 Spaces Moved 498 | 7 94 110 287 Core . | . . . . Treads 106 | . . 106 . Legs 392 | 7 94 4 287 Wheels . | . . . . Hover . | . . . . Flight . | . . . . Fastest Speed 120 | 120 120 150 120 Average Speed 135 | 120 142 159 124 Slowest Speed 160 | 120 150 160 150 Overloaded Moves . | . . . . Propulsion Burnouts . | . . . . Robots Hopped . | . . . . Cave-ins Triggered . | . . . . Exploration Rate (%) 27 | 2 22 36 50 Regions Visited 3 Branch Regions 2 Pre-discovered Areas . | . . . . Known Exits Taken 3 | 1 1 1 . Unknown Exits Taken . | . . . . Scrap Searched . | . . . . Spaces Dug . | . . . . Terrain Destroyed 46 | . . . 46 Melee . | . . . . Projectile . | . . . . AOE 46 | . . . 46 Terrain Rammed . | . . . . Walls Destroyed . | . . . . Machines Disabled . | . . . . Actions | -11 -10 -10 -10 --------- Run | Scr Mat Min Exi Total 633 | 16 97 167 353 Wait 4 | . . . 4 Move 495 | 6 93 109 287 Hop . | . . . . Pick Up 10 | . . 6 4 Fast Attach 3 | 1 1 . 1 Attach 3 | 1 . 2 . Detach 2 | 2 . . . Swap 7 | . . 2 5 Drop 9 | . . . 9 Fire 65 | 6 3 48 8 Melee . | . . . . Ram . | . . . . Kick 29 | . . . 29 Crush . | . . . . Escape Stasis . | . . . . Rewire 6 | . . . 6 Trap . | . . . . Miscellaneous . | . . . . Route ------- -11/Scrapyard -10/Materials -10/Mines -10/Exiles History --------- Turn | Location | Event 21 | -11/Scrapyard | Identified exit to Materials 21 | -11/Scrapyard | Discovered exit to Materials (range 3) 30 | -11/Scrapyard | Entered Materials 30 | -10/Materials | Evolved 1 slot: Utility x1 74 | -10/Materials | Identified exit to Mines 74 | -10/Materials | Discovered exit to Mines (range 15) 99 | -10/Materials | Met 8R-AWN 173 | -10/Materials | Entered Mines 175 | -10/Mines | Followed 8R-AWN into the Mines 182 | -10/Mines | Attacked by 8R-AWN 234 | -10/Mines | Core integrity fell below 50% 301 | -10/Mines | Build established: Hacker-Mutant 321 | -10/Mines | Destroyed 8R-AWN 340 | -10/Mines | Found Prototype Processor 425 | -10/Mines | Received a Rocket Launcher from a helpful Derelict 496 | -10/Mines | Identified exit to Exiles 496 | -10/Mines | Discovered exit to Exiles (range 5) 502 | -10/Mines | Entered Exiles 502 | -10/Exiles | Attacked by the Exiles 560 | -10/Exiles | Core integrity fell below 20% 573 | -10/Exiles | Destroyed 7 combat bots 669 | -10/Exiles | Opened EX-Vault 678 | -10/Exiles | Found XL Autogun Array 682 | -10/Exiles | Found Flying Fortress v7 938 | -10/Exiles | Destroyed by DAS Turret with DAS Cannon Last Messages --------------- 00831_ Slammed into as-53220. 00831_ Destabilizing: System corrupted (+1). 00832_ Slammed into as-53220. 00833_ Kicked as-53220 out of the way. 00836_ Slammed into as-53220. 00837_ Destabilizing: System corrupted (+1). 00838_ Kicked as-53220 out of the way. 00839_ Slammed into as-53220. 00842_ Kicked as-53220 out of the way. 00842_ as-53220 destroyed. 00843_ Acquired 20 matter. 00866_ Extracted 5 energy. 00868_ System corrupted: Heat flow error (+203). 00871_ Dropped Weapon Shielding. 00871_ Acquired Hcp. Storage Unit. 00874_ Acquired Weapon Shielding. 00880_ Extracted 5 energy. 00881_ Acquired Hcp. Battery. 00891_ System corrupted: Energy discharge (-46). 00937_ Y|&9=WGHFZV7ZSQOSNSRW&YK